bitfinex/quotes_BTCUSD_20220111
["timestamp","ask_amount","ask_price","bid_price","bid_amount"]
[1641866505338,0.03050872,41934.0,41933.0,1.00499529]
[1641866505538,0.03050872,41934.0,41933.0,1.42499529]
[1641866506586,0.02550872,41934.0,41933.0,1.38899529]
[1641866507385,0.03050872,41934.0,41933.0,1.42699529]
[1641866507786,0.03050872,41934.0,41933.0,1.49215961]
[1641866508686,0.02550872,41934.0,41933.0,1.45415961]
[1641866509531,0.03050872,41934.0,41933.0,1.48915961]
[1641866510335,0.03050872,41934.0,41933.0,1.11745561]
[1641866510735,0.02550872,41934.0,41933.0,1.08245561]
[1641866511335,0.03150872,41934.0,41933.0,1.11945561]
[1641866511737,0.03150872,41934.0,41933.0,1.05982585]
[1641866512736,0.02550872,41934.0,41933.0,1.02282585]
[1641866513385,0.03350872,41934.0,41933.0,1.02282585]
[1641866513786,0.3837103,41934.0,41933.0,1.02282585]
[1641866514784,0.68189466,41934.0,41933.0,1.02282585]
[1641866515185,1.06712742,41934.0,41933.0,1.02282585]
[1641866515385,1.08312742,41934.0,41933.0,1.02282585]
[1641866516585,0.76094306,41934.0,41933.0,1.02282585]
[1641866517342,0.78494306,41934.0,41933.0,1.02282585]
[1641866518647,0.76094306,41934.0,41933.0,1.02282585]
[1641866519344,0.82964306,41934.0,41933.0,1.02282585]
[1641866520696,0.80864306,41934.0,41933.0,1.02282585]
[1641866521386,0.82964306,41934.0,41933.0,1.02282585]
[1641866522087,0.09420872,41934.0,41933.0,1.02282585]
[1641866522487,0.04650872,41934.0,41933.0,1.02282585]
[1641866522687,0.02550872,41934.0,41933.0,1.02282585]
[1641866523587,0.04550872,41934.0,41933.0,1.02282585]
[1641866524635,0.02550872,41934.0,41933.0,1.02282585]
[1641866525436,0.02950872,41934.0,41933.0,1.02282585]
[1641866526839,0.02550872,41934.0,41933.0,1.02282585]
[1641866527536,0.03350872,41934.0,41933.0,1.02282585]
[1641866528385,0.03350872,41934.0,41933.0,1.34160879]
[1641866528585,0.03350872,41934.0,41933.0,1.02282585]
[1641866529586,0.03950872,41934.0,41933.0,1.02282585]
[1641866530185,0.02550872,41934.0,41933.0,1.02282585]
[1641866530585,0.02550872,41934.0,41933.0,1.08245864]
[1641866530785,0.02550872,41934.0,41933.0,1.02282585]
[1641866531587,0.03150872,41934.0,41933.0,1.02282585]
[1641866532741,0.02550872,41934.0,41933.0,1.02282585]
[1641866532941,0.02470872,41934.0,41933.0,1.02282585]
[1641866533341,0.00943386,41934.0,41933.0,1.02282585]
[1641866533543,0.01643386,41934.0,41933.0,1.02282585]
[1641866533742,0.03170872,41934.0,41933.0,1.02282585]
[1641866534645,0.02470872,41934.0,41933.0,1.02282585]
[1641866535446,0.03170872,41934.0,41933.0,1.02282585]
[1641866536784,0.02470872,41934.0,41933.0,1.02282585]
[1641866537385,0.03170872,41934.0,41933.0,1.02282585]
[1641866538786,0.02470872,41934.0,41933.0,1.02282585]
[1641866539440,0.03470872,41934.0,41933.0,1.02282585]
[1641866540644,0.02470872,41934.0,41933.0,1.02282585]
[1641866540944,0.02270872,41934.0,41933.0,1.02282585]
[1641866541144,0.01527486,41934.0,41933.0,1.02282585]
[1641866541341,0.01327486,41934.0,41933.0,1.02282585]
[1641866541541,0.01743386,41934.0,41933.0,1.02282585]
[1641866541745,0.01543386,41934.0,41933.0,1.02282585]
[1641866541943,0.02670872,41934.0,41933.0,1.02282585]
[1641866542142,0.02470872,41934.0,41933.0,1.02282585]
[1641866542543,0.02270872,41934.0,41933.0,1.02282585]
[1641866542743,0.01127486,41934.0,41933.0,1.02282585]
[1641866543387,0.02127486,41934.0,41933.0,1.02282585]
[1641866544688,0.01127486,41934.0,41933.0,1.02282585]
[1641866545487,0.00027486,41934.0,41933.0,1.02282585]
[1641866545688,0.03515961,41936.0,41933.0,1.02282585]
[1641866547450,0.04415961,41936.0,41934.0,0.27195851]
[1641866547747,0.04415961,41936.0,41934.0,0.42]
[1641866548747,0.03515961,41936.0,41934.0,0.42]
[1641866549547,0.04415961,41936.0,41934.0,0.42]
[1641866549747,0.04215961,41936.0,41934.0,0.42]
[1641866549947,0.35931507,41936.0,41934.0,0.42]
[1641866550151,0.35731507,41936.0,41934.0,0.42]
[1641866550447,0.35531507,41936.0,41934.0,0.415]
[1641866550691,0.08434446,41936.0,41934.0,0.415]
[1641866550888,0.03234446,41936.0,41934.0,0.415]
[1641866551089,0.03034446,41936.0,41934.0,0.415]
[1641866551589,0.03934446,41936.0,41934.0,0.415]
[1641866551989,0.32293233,41935.0,41934.0,0.415]
[1641866553490,0.33193233,41935.0,41934.0,0.415]
[1641866553691,0.009,41935.0,41934.0,0.415]
[1641866554537,0.28164376,41935.0,41934.0,0.415]
[1641866554738,0.27264376,41935.0,41934.0,0.415]
[1641866555137,0.00718485,41936.0,41934.0,0.415]
[1641866555537,0.005,41935.0,41934.0,0.415]
[1641866556538,0.32130367,41935.0,41934.0,0.41]
[1641866556738,0.45136367,41935.0,41934.0,0.41]
[1641866556939,1.32572698,41935.0,41934.0,0.41]
[1641866557140,0.8,41933.0,41921.0,0.60552058]
[1641866557340,0.00129736,41923.0,41921.0,0.60552058]
[1641866557540,0.15038,41923.0,41921.0,0.60552058]
[1641866558192,0.12642,41923.0,41921.0,0.60552058]
[1641866558587,0.12642,41923.0,41919.0,0.70644068]
[1641866558588,0.12642,41923.0,41918.0,0.28893676]
[1641866559387,0.12642,41923.0,41918.0,0.00085724]
[1641866559586,0.13242,41923.0,41918.0,0.00085724]
[1641866560388,0.0537,41923.0,41919.0,0.27580187]
[1641866561389,0.0487,41923.0,41919.0,0.27580187]
[1641866561591,0.0497,41923.0,41919.0,0.69580187]
[1641866561788,0.0497,41923.0,41919.0,0.42085723]
[1641866562645,0.0427,41923.0,41919.0,0.42085723]
[1641866562945,0.0427,41923.0,41919.0,0.42]
[1641866563146,0.0427,41923.0,41919.0,0.42085723]
[1641866563644,0.0517,41923.0,41919.0,0.42085723]
[1641866564046,0.0517,41923.0,41919.0,0.42]
[1641866564245,0.0517,41923.0,41919.0,0.42085723]
[1641866564848,0.0427,41923.0,41919.0,0.42085723]
[1641866565248,0.0427,41923.0,41919.0,0.42]
[1641866565448,0.0527,41923.0,41919.0,0.42085723]
[1641866566894,0.0427,41923.0,41919.0,0.42085723]
[1641866567095,0.0427,41923.0,41919.0,0.66085723]
[1641866567496,0.0527,41923.0,41919.0,0.66085723]
[1641866567795,0.0527,41923.0,41919.0,0.66068571]
[1641866568897,0.0427,41923.0,41919.0,0.66]
[1641866569198,0.00123332,41920.0,41919.0,0.66068571]
[1641866569446,0.04893332,41920.0,41919.0,0.66068571]
[1641866570047,0.04893332,41920.0,41919.0,0.66]
[1641866570452,0.09893332,41920.0,41919.0,0.66]
[1641866570850,0.14893332,41920.0,41919.0,0.66]
[1641866571050,0.1477,41920.0,41919.0,0.66]
[1641866571249,0.4660802,41920.0,41919.0,0.66]
[1641866571449,0.4760802,41920.0,41919.0,0.66]
[1641866572049,0.79082518,41920.0,41919.0,0.66]
[1641866572953,0.4760802,41920.0,41919.0,0.66]
[1641866573401,0.4660802,41920.0,41919.0,0.66]
[1641866573598,0.1587,41920.0,41919.0,0.66]
[1641866573801,0.47536734,41920.0,41919.0,0.66]
[1641866573995,0.80166758,41920.0,41919.0,0.66]
[1641866574697,0.85166758,41920.0,41919.0,0.66]
[1641866574895,0.42782734,41920.0,41919.0,0.66]
[1641866575295,0.52782734,41920.0,41919.0,0.66]
[1641866575596,0.53882734,41920.0,41919.0,0.66]
[1641866575795,0.79045708,41920.0,41919.0,0.66]
[1641866575999,0.84045708,41920.0,41919.0,0.66]
[1641866576397,0.84045708,41920.0,41919.0,0.64308299]
[1641866576797,0.82945708,41920.0,41919.0,0.64308299]
[1641866577439,0.83075001,41920.0,41919.0,0.63808299]
[1641866577639,0.84175001,41920.0,41919.0,0.63808299]
[1641866578840,0.83075001,41920.0,41919.0,0.63808299]
[1641866579540,0.84175001,41920.0,41919.0,0.63808299]
[1641866579741,0.84146292,41920.0,41919.0,0.63808299]
[1641866580788,0.83046292,41920.0,41919.0,0.63808299]
[1641866581587,0.84046292,41920.0,41919.0,0.63808299]
[1641866582794,0.84046292,41920.0,41893.0,0.60552058]
[1641866582795,0.00126071,41908.0,41893.0,0.60552058]
[1641866582990,0.059692,41905.0,41893.0,0.89322058]
[1641866583190,0.06095371,41908.0,41897.0,0.00125731]
[1641866583191,0.0477,41904.0,41897.0,0.00125731]
[1641866583390,0.0477,41904.0,41898.0,0.63306492]
[1641866583793,0.0477,41904.0,41903.0,0.84287674]
[1641866583989,0.0477,41904.0,41903.0,1.26339496]
[1641866584841,0.0477,41904.0,41903.0,0.6]
[1641866585343,0.0477,41904.0,41900.0,0.43762126]
[1641866585541,0.0527,41904.0,41898.0,0.26136092]
[1641866586043,0.0527,41904.0,41901.0,0.00085743]
[1641866586841,0.0477,41904.0,41900.0,0.27471287]
[1641866587042,0.0477,41904.0,41900.0,0.27557031]
[1641866587244,0.0477,41904.0,41901.0,0.24]
[1641866587843,0.0477,41904.0,41901.0,0.66]
[1641866591497,0.06687886,41907.0,41901.0,0.66]
[1641866591692,0.008,41904.0,41901.0,0.66]
[1641866592141,0.003,41904.0,41901.0,0.66]
[1641866592943,0.00718986,41907.0,41901.0,0.66]
[1641866593546,0.00718986,41907.0,41901.0,0.89725213]
[1641866593745,0.01418986,41907.0,41901.0,0.89725213]
[1641866594345,0.01418986,41907.0,41902.0,0.00085742]
[1641866594948,0.00718986,41907.0,41902.0,0.00085742]
[1641866595346,0.00718986,41907.0,41901.0,0.66]
[1641866595545,0.00718986,41907.0,41902.0,0.00085741]
[1641866595546,0.01418986,41907.0,41902.0,0.00085741]
[1641866595798,0.0477,41906.0,41902.0,0.00085741]
[1641866595997,0.0977,41906.0,41902.0,0.00085741]
[1641866596396,0.1477,41906.0,41901.0,0.66]
[1641866596596,0.1477,41906.0,41902.0,0.00085742]
[1641866597195,0.0977,41906.0,41902.0,0.00085742]
[1641866597597,0.1057,41906.0,41901.0,0.66]
[1641866597798,0.1057,41906.0,41902.0,0.00085742]
[1641866598796,0.1057,41906.0,41901.0,0.66]
[1641866598996,0.0977,41906.0,41902.0,0.00085742]
[1641866599645,0.1057,41906.0,41902.0,0.00085742]
[1641866600050,0.1057,41906.0,41901.0,0.66]
[1641866600247,0.1057,41906.0,41902.0,0.00085742]
[1641866600849,0.0977,41906.0,41902.0,0.00085742]
[1641866601248,0.0977,41906.0,41901.0,0.66]
[1641866601449,0.0977,41906.0,41902.0,0.00085742]
[1641866601648,0.1057,41906.0,41902.0,0.00085742]
[1641866602451,0.1057,41906.0,41901.0,0.66]
[1641866602653,0.1057,41906.0,41902.0,0.00085742]
[1641866602951,0.0977,41906.0,41902.0,0.00085742]
[1641866603594,0.1057,41906.0,41901.0,0.66]
[1641866603794,0.1057,41906.0,41902.0,0.00085742]
[1641866604896,0.0977,41906.0,41901.0,0.66]
[1641866605096,0.0977,41906.0,41902.0,0.00085742]
[1641866605695,0.1057,41906.0,41902.0,0.00085742]
[1641866605994,0.1057,41906.0,41901.0,0.66]
[1641866606195,0.1057,41906.0,41902.0,0.00085742]
[1641866606795,0.0977,41906.0,41902.0,0.00085742]
[1641866607243,0.0977,41906.0,41901.0,0.66]
[1641866607442,0.0977,41906.0,41902.0,0.00085742]
[1641866607641,0.1057,41906.0,41902.0,0.00085742]
[1641866608543,0.1057,41906.0,41901.0,0.66]
[1641866608745,0.1057,41906.0,41902.0,0.00085742]
[1641866608944,0.0977,41906.0,41902.0,0.00085742]
[1641866609346,0.1477,41906.0,41902.0,0.00085742]
[1641866609747,0.1557,41906.0,41901.0,0.66]
[1641866609945,0.1557,41906.0,41902.0,0.00085742]
[1641866610245,0.108,41906.0,41902.0,0.00085742]
[1641866610445,0.008,41906.0,41902.0,0.00085742]
[1641866610697,0.058,41906.0,41902.0,0.00085742]
[1641866610892,0.00718986,41907.0,41901.0,0.66]
[1641866611093,0.059691,41906.0,41902.0,0.00085742]
[1641866611692,0.063691,41906.0,41902.0,0.00085742]
[1641866611894,0.25741763,41905.0,41902.0,0.00085742]
[1641866612094,0.25741763,41905.0,41901.0,0.66]
[1641866612095,0.1,41905.0,41901.0,0.66]
[1641866612296,0.059697,41903.0,41902.0,0.00085742]
[1641866612895,0.49893249,41903.0,41902.0,0.00085742]
[1641866613194,0.49893249,41903.0,41901.0,0.66]
[1641866613394,0.0477,41902.0,41901.0,0.66]
[1641866613993,0.0977,41902.0,41901.0,0.66]
[1641866614443,0.1477,41902.0,41901.0,0.66]
[1641866615846,0.1057,41902.0,41901.0,0.66]
[1641866616846,0.0977,41902.0,41901.0,0.66]
[1641866617648,0.1077,41902.0,41901.0,0.66]
[1641866618694,0.1577,41902.0,41901.0,0.66]
[1641866619193,0.15953834,41902.0,41901.0,0.66]
[1641866619793,0.11853834,41902.0,41901.0,0.66]
[1641866620794,0.16853834,41902.0,41901.0,0.66]
[1641866620994,0.14953834,41902.0,41901.0,0.66]
[1641866621699,0.15953834,41902.0,41901.0,0.66]
[1641866622145,0.17299834,41902.0,41901.0,0.66]
[1641866622546,0.50526509,41902.0,41901.0,0.66]
[1641866622944,0.49526509,41902.0,41901.0,0.66]
[1641866623344,1.10358125,41902.0,41901.0,0.66]
[1641866623744,1.11058125,41902.0,41901.0,0.66]
[1641866624144,1.21162647,41902.0,41901.0,0.66]
[1641866624545,0.87935972,41902.0,41901.0,0.66]
[1641866625346,0.87235972,41902.0,41901.0,0.66]
[1641866625547,0.25729713,41902.0,41901.0,0.66]
[1641866625796,0.27529713,41902.0,41901.0,0.66]
[1641866626995,0.25729713,41902.0,41901.0,0.66]
[1641866627800,0.27529713,41902.0,41901.0,0.66]
[1641866628195,0.58337495,41902.0,41901.0,0.66]
[1641866628795,0.58541908,41902.0,41901.0,0.66]
[1641866628995,0.56741908,41902.0,41901.0,0.66]
[1641866629744,0.58641908,41902.0,41901.0,0.66]
[1641866630145,0.69993908,41902.0,41901.0,0.66]
[1641866630349,0.59993908,41902.0,41901.0,0.66]
[1641866630946,0.58093908,41902.0,41901.0,0.66]
[1641866631648,0.58141908,41902.0,41901.0,0.66]
[1641866631847,0.27334126,41902.0,41901.0,0.66]
[1641866633047,0.25934126,41902.0,41901.0,0.66]
[1641866633696,0.27634126,41902.0,41901.0,0.66]
[1641866633895,0.22634126,41902.0,41901.0,0.66]
[1641866634697,0.27634126,41902.0,41901.0,0.66]
[1641866634898,0.25934126,41902.0,41901.0,0.66]
[1641866635697,0.27334126,41902.0,41901.0,0.66]
[1641866636499,0.71439737,41902.0,41901.0,0.66]
[1641866636947,0.70039737,41902.0,41901.0,0.66]
[1641866637349,1.2305111,41902.0,41901.0,0.66]
[1641866637548,1.3282111,41902.0,41901.0,0.66]
[1641866637748,1.34042362,41902.0,41901.0,0.66]
[1641866638152,0.059707,41897.0,41893.0,0.00343031]
[1641866638349,0.35600856,41896.0,41893.0,0.00343031]
[1641866638549,0.35600856,41896.0,41885.0,0.324542]
[1641866639150,0.39791757,41895.0,41884.0,0.311212]
[1641866639350,0.107408,41894.0,41884.0,0.31]
[1641866639552,0.32888018,41893.0,41884.0,0.31]
[1641866639752,0.29092029,41892.0,41885.0,0.29986775]
[1641866641196,0.0477,41892.0,41886.0,0.00085759]
[1641866641793,0.0547,41892.0,41886.0,0.00085759]
[1641866641995,0.0547,41892.0,41885.0,0.29986775]
[1641866642195,0.0547,41892.0,41887.0,0.00085759]
[1641866643195,0.0547,41892.0,41884.0,0.31124279]
[1641866643398,0.0547,41892.0,41887.0,0.00085758]
[1641866643594,0.059712,41891.0,41887.0,0.00085758]
[1641866643998,0.06174359,41891.0,41887.0,0.00085758]
[1641866644195,0.00203159,41891.0,41887.0,0.00085758]
[1641866644444,0.00203159,41891.0,41884.0,0.31124279]
[1641866644644,0.00203159,41891.0,41887.0,0.00085759]
[1641866645247,0.06174359,41891.0,41887.0,0.00085759]
[1641866645446,0.33160962,41890.0,41887.0,0.00085759]
[1641866645645,0.33160962,41890.0,41883.0,0.23775461]
[1641866645845,0.05,41889.0,41887.0,0.00085759]
[1641866646048,0.00719312,41888.0,41887.0,0.00085759]
[1641866646646,0.31442203,41888.0,41887.0,0.00085759]
[1641866646847,0.00719312,41888.0,41883.0,0.23775461]
[1641866647049,0.00719312,41888.0,41885.0,0.0008576]
[1641866647350,0.107417,41887.0,41885.0,0.0008576]
[1641866647848,0.157417,41887.0,41885.0,0.0008576]
[1641866648048,0.157417,41887.0,41882.0,0.34142172]
[1641866648303,0.157417,41887.0,41884.0,0.00085762]
[1641866648304,0.15712976,41887.0,41884.0,0.00085762]
[1641866648903,0.00202589,41886.0,41885.0,0.24]
[1641866649103,0.04972589,41886.0,41885.0,0.24]
[1641866649302,0.04972589,41886.0,41885.0,0.5508595]
[1641866649704,0.05672589,41886.0,41885.0,0.24]
[1641866649906,0.05672589,41886.0,41883.0,0.00085763]
[1641866650508,0.05672589,41886.0,41881.0,0.008]
[1641866650706,0.05672589,41886.0,41882.0,0.00085764]
[1641866651106,0.04972589,41886.0,41882.0,0.00085764]
[1641866651606,0.04972589,41886.0,41881.0,0.008]
[1641866651807,0.05572589,41886.0,41882.0,0.00085764]
[1641866652852,0.05572589,41886.0,41881.0,0.008]
[1641866653050,0.04972589,41886.0,41882.0,0.00085764]
[1641866653751,0.05372589,41886.0,41882.0,0.00085764]
[1641866654150,0.05372589,41886.0,41881.0,0.008]
[1641866654350,0.05372589,41886.0,41882.0,0.00085764]
[1641866654351,0.00202475,41885.0,41882.0,0.00085764]
[1641866654553,0.0477,41884.0,41882.0,0.00085764]
[1641866655151,0.00202475,41885.0,41882.0,0.00085764]
[1641866655351,0.00202475,41885.0,41882.0,0.1]
[1641866655551,0.00202475,41885.0,41883.0,0.371704]
[1641866655796,0.00202475,41885.0,41884.0,0.30934664]
[1641866656199,0.00202475,41885.0,41884.0,1.03918368]
[1641866656600,0.00202475,41885.0,41884.0,0.67992364]
[1641866658800,0.24810758,41893.0,41884.0,0.67992364]
[1641866659002,0.24810758,41893.0,41888.0,0.25201113]
[1641866659303,0.00202475,41893.0,41888.0,0.25201113]
[1641866659749,0.00502475,41893.0,41888.0,0.25201113]
[1641866660350,0.00502475,41893.0,41888.0,0.2528687]
[1641866660549,0.00502475,41893.0,41888.0,0.00085757]
[1641866661153,0.00202475,41893.0,41888.0,0.00085757]
[1641866661351,0.00202475,41893.0,41884.0,0.370577]
[1641866661552,0.00202475,41893.0,41888.0,0.00085757]
[1641866661751,0.00402475,41893.0,41888.0,0.00085757]
[1641866662555,0.00402475,41893.0,41884.0,0.370577]
[1641866662755,0.00402475,41893.0,41888.0,0.00085757]
[1641866663055,0.33336015,41890.0,41888.0,0.00085757]
[1641866663301,0.38336015,41890.0,41888.0,0.00085757]
[1641866663702,0.06419235,41890.0,41881.0,0.00924862]
[1641866663901,0.11419235,41890.0,41887.0,0.00085759]
[1641866664101,0.05,41889.0,41887.0,0.00085759]
[1641866664300,0.06419235,41890.0,41887.0,0.00085759]
[1641866664503,0.07390535,41890.0,41887.0,0.00085759]
[1641866664702,0.35456143,41889.0,41887.0,0.00085759]
[1641866664906,0.45456143,41889.0,41881.0,0.008]
[1641866665101,0.45456143,41889.0,41886.0,0.00085759]
[1641866665305,0.1,41889.0,41886.0,0.00085759]
[1641866665505,0.26971111,41888.0,41886.0,0.00085759]
[1641866665703,0.31971111,41888.0,41886.0,0.00085759]
[1641866665902,0.36971111,41888.0,41886.0,0.00085759]
[1641866666101,0.059721,41885.0,41881.0,0.008]
[1641866667547,0.38696379,41887.0,41881.0,0.00885765]
[1641866667748,0.009,41885.0,41881.0,0.00885765]
[1641866668549,0.009,41885.0,41881.0,0.008]
[1641866668749,0.00202361,41884.0,41881.0,0.00885765]
[1641866669753,0.01002361,41884.0,41873.0,0.58595051]
[1641866669949,0.01002361,41884.0,41880.0,0.00085766]
[1641866670352,0.80437936,41881.0,41880.0,0.00085766]
[1641866670552,0.91410636,41881.0,41880.0,0.00085766]
[1641866670796,0.91410636,41881.0,41871.0,0.5812]
[1641866670995,0.85437936,41881.0,41873.0,0.00046331]
[1641866671199,0.05,41877.0,41873.0,0.00046331]
[1641866671795,0.06,41877.0,41873.0,0.00046331]
[1641866671995,0.06,41877.0,41870.0,0.33586038]
[1641866672194,0.06,41877.0,41873.0,0.00046331]
[1641866673095,0.35829438,41877.0,41873.0,0.00046331]
[1641866673296,0.05,41877.0,41866.0,0.2966]
[1641866673497,0.3554204,41877.0,41873.0,0.00085774]
[1641866673697,0.35855828,41877.0,41873.0,0.00085774]
[1641866673895,0.29714194,41875.0,41873.0,0.00085774]
[1641866674296,0.30926367,41874.0,41873.0,0.00085774]
[1641866674545,0.30926367,41874.0,41863.0,1.2195209]
[1641866674744,1.01232726,41874.0,41872.0,0.00085775]
[1641866674947,0.30571826,41873.0,41872.0,0.00085775]
[1641866675746,0.31471826,41873.0,41866.0,0.28305099]
[1641866675947,0.36471826,41873.0,41870.0,0.00085777]
[1641866676146,0.41471826,41873.0,41870.0,0.00085777]
[1641866676347,0.00121406,41872.0,41870.0,0.00085777]
[1641866676546,0.0477,41871.0,41870.0,0.00085777]
[1641866676947,0.0477,41871.0,41865.0,0.3331251]
[1641866677248,0.0477,41871.0,41869.0,0.00085778]
[1641866677746,0.0577,41871.0,41869.0,0.00085778]
[1641866678205,0.0577,41871.0,41868.0,0.00085779]
[1641866678996,0.0477,41871.0,41868.0,0.00085779]
[1641866679197,0.0477,41871.0,41861.0,0.32931807]
[1641866679397,0.0477,41871.0,41867.0,0.0008578]
[1641866679597,0.05,41869.0,41867.0,0.0008578]
[1641866680196,0.1057,41871.0,41867.0,0.0008578]
[1641866680396,0.1057,41871.0,41861.0,0.65528479]
[1641866680597,0.1057,41871.0,41866.0,0.00085782]
[1641866680598,0.44461953,41871.0,41866.0,0.00085782]
[1641866680797,0.00719616,41870.0,41866.0,0.00085782]
[1641866681397,0.00719616,41870.0,41866.0,0.31524327]
[1641866681598,0.00719616,41870.0,41866.0,0.31438545]
[1641866681797,0.00719616,41870.0,41866.0,0.31524327]
[1641866681798,0.01619616,41870.0,41866.0,0.31524327]
[1641866682949,0.01619616,41870.0,41862.0,0.28342959]
[1641866683147,0.00719616,41870.0,41866.0,0.00085782]
[1641866683950,0.01719616,41870.0,41866.0,0.00085782]
[1641866684150,0.01719616,41870.0,41865.0,0.30619033]
[1641866684350,0.01719616,41870.0,41866.0,0.00085782]
[1641866685156,0.00719616,41870.0,41866.0,0.00085782]
[1641866685351,0.00719616,41870.0,41862.0,0.28342959]
[1641866685551,0.00719616,41870.0,41866.0,0.00085782]
[1641866685795,0.01319616,41870.0,41866.0,0.25474973]
[1641866686593,0.01319616,41870.0,41866.0,0.00085782]
[1641866686997,0.00719616,41870.0,41866.0,0.00085782]
[1641866687598,0.00719616,41870.0,41862.0,0.28342959]
[1641866687803,0.01719616,41870.0,41866.0,0.00085782]
[1641866688901,0.01719616,41870.0,41862.0,0.28342959]
[1641866689103,0.00719616,41870.0,41866.0,0.00085782]
[1641866689545,0.04035466,41871.0,41866.0,0.00085782]
[1641866689946,0.01,41870.0,41866.0,0.00085782]
[1641866690147,0.01,41870.0,41863.0,0.33872854]
[1641866690351,0.01,41870.0,41866.0,0.00085781]
[1641866691149,0.04035466,41871.0,41866.0,0.00085781]
[1641866691347,0.04035466,41871.0,41864.0,0.30899619]
[1641866691547,0.04035466,41871.0,41866.0,0.00085782]
[1641866691747,0.04035466,41871.0,41864.0,0.29485401]
[1641866691949,0.04735466,41871.0,41864.0,0.29485401]
[1641866693206,0.04035466,41871.0,41864.0,0.29485401]
[1641866693999,0.04735466,41871.0,41864.0,0.29485401]
[1641866694199,0.007,41871.0,41864.0,0.29485401]
[1641866695202,0.03505287,41872.0,41864.0,0.29485401]
[1641866695402,0.04224821,41872.0,41864.0,0.29485401]
[1641866695902,0.04924821,41872.0,41864.0,0.2958094]
[1641866696303,0.04924821,41872.0,41864.0,0.29666726]
[1641866697147,0.04224821,41872.0,41864.0,0.29666726]
[1641866697346,0.04224821,41872.0,41863.0,0.33872854]
[1641866697347,0.44341207,41870.0,41861.0,0.008]
[1641866697550,0.49341207,41870.0,41864.0,0.00085786]
[1641866697949,0.50041207,41870.0,41864.0,0.00085786]
[1641866698551,0.50041207,41870.0,41862.0,0.32544381]
[1641866698749,0.50041207,41870.0,41864.0,0.00085785]
[1641866699152,0.49341207,41870.0,41864.0,0.00085785]
[1641866699551,0.05,41870.0,41864.0,0.00085785]
[1641866699752,0.05,41870.0,41863.0,0.32728688]
[1641866699951,0.007,41870.0,41864.0,0.00085785]
[1641866700802,0.007,41870.0,41863.0,0.32728688]
[1641866701000,0.007,41870.0,41864.0,0.00085785]
[1641866701201,0.04224821,41872.0,41864.0,0.00085785]
[1641866702101,0.05124821,41872.0,41861.0,0.008]
[1641866702400,0.05124821,41872.0,41864.0,0.00085786]
[1641866702603,0.05124821,41872.0,41866.0,0.32095782]
[1641866703204,0.04224821,41872.0,41866.0,0.32095782]
[1641866703603,0.04224821,41872.0,41865.0,0.25499775]
[1641866703803,0.10198721,41872.0,41865.0,0.25499775]
[1641866704004,0.11098721,41872.0,41865.0,0.25499775]
[1641866704649,0.11098721,41872.0,41865.0,0.53479698]
[1641866705051,0.05124821,41872.0,41865.0,0.53479698]
[1641866705349,0.04224821,41872.0,41865.0,0.53479698]
[1641866705750,0.04224821,41872.0,41865.0,0.71065698]
[1641866705952,0.05124821,41872.0,41865.0,0.71065698]
[1641866706350,0.059741,41871.0,41865.0,0.45565923]
[1641866708055,0.009,41871.0,41865.0,0.45565923]
[1641866709099,0.14224821,41872.0,41865.0,0.45565923]
[1641866709901,0.00129717,41871.0,41865.0,0.45565923]
[1641866710301,0.0012056,41866.0,41865.0,0.45565923]
[1641866711205,0.0477,41869.0,41865.0,0.45565923]
[1641866711967,0.0567,41869.0,41865.0,0.45565923]
[1641866713167,0.0477,41869.0,41865.0,0.45565923]
[1641866713966,0.0567,41869.0,41865.0,0.45565923]
[1641866715167,0.0477,41869.0,41865.0,0.45565923]
[1641866715568,0.107443,41869.0,41865.0,0.45565923]
[1641866715801,0.157443,41869.0,41865.0,0.45565923]
[1641866716001,0.166443,41869.0,41865.0,0.44565923]
[1641866716803,0.2261889,41869.0,41865.0,0.44565923]
[1641866717005,0.894364,41869.0,41865.0,0.44565923]
[1641866717202,0.935364,41869.0,41865.0,0.44565923]
[1641866717403,1.035364,41869.0,41865.0,0.44565923]
[1641866717601,0.6084281,41867.0,41865.0,0.44565923]
[1641866717806,0.50740653,41866.0,41865.0,0.44565923]
[1641866719445,1.11583463,41866.0,41865.0,0.44565923]
[1641866720047,1.12483463,41866.0,41865.0,0.44565923]
[1641866721246,1.11583463,41866.0,41865.0,0.44565923]
[1641866721650,1.71050155,41866.0,41865.0,0.44565923]
[1641866722048,1.72050155,41866.0,41865.0,0.44565923]
[1641866722247,1.11207345,41866.0,41865.0,0.44565923]
[1641866722447,1.82190624,41866.0,41865.0,0.44565923]
[1641866722646,1.92190624,41866.0,41865.0,0.44565923]
[1641866723301,2.04620779,41866.0,41865.0,0.44565923]
[1641866723501,1.336375,41866.0,41865.0,0.44565923]
[1641866723900,1.345375,41866.0,41865.0,0.44565923]
[1641866724304,1.69245597,41866.0,41865.0,0.44565923]
[1641866725200,1.68345597,41866.0,41865.0,0.44565923]
[1641866725401,1.94223209,41866.0,41865.0,0.44565923]
[1641866725899,1.95023209,41866.0,41865.0,0.44565923]
[1641866727349,1.94223209,41866.0,41865.0,0.44565923]
[1641866727550,2.01715604,41866.0,41865.0,0.44565923]
[1641866727950,2.02915604,41866.0,41865.0,0.44565923]
[1641866728148,1.99468541,41866.0,41865.0,0.44565923]
[1641866728951,1.99468541,41866.0,41865.0,0.44065923]
[1641866729153,1.98268541,41866.0,41865.0,0.44065923]
[1641866729351,1.98268541,41866.0,41863.0,0.00085784]
[1641866729555,0.4330135,41864.0,41863.0,0.00085784]
[1641866729752,0.4942335,41864.0,41861.0,0.008]
[1641866729953,0.33494562,41862.0,41861.0,0.008]
[1641866730155,0.59240637,41862.0,41861.0,0.008]
[1641866730909,0.25746075,41862.0,41861.0,0.008]
[1641866731099,0.1977,41862.0,41861.0,0.008]
[1641866731299,0.0977,41862.0,41861.0,0.008]
[1641866731700,0.4052652,41862.0,41861.0,0.008]
[1641866731900,0.0977,41862.0,41861.0,0.008]
[1641866732103,0.2107,41862.0,41861.0,0.008]
[1641866733003,0.1107,41862.0,41861.0,0.008]
[1641866733403,0.0977,41862.0,41861.0,0.008]
[1641866733804,0.40976099,41862.0,41861.0,0.008]
[1641866734005,0.52176099,41862.0,41861.0,0.008]
[1641866734204,0.2097,41862.0,41861.0,0.008]
[1641866735251,0.4342954,41862.0,41861.0,0.008]
[1641866735451,0.1097,41862.0,41861.0,0.008]